bitfinex-derivatives/quotes_ETHF0:USTF0_20250427
["timestamp","ask_amount","ask_price","bid_price","bid_amount"]
[1745713978173,1.08525,1842.3,1842.0,1.8534]
[1745713978378,7.5508,1842.6,1842.0,1.8534]
[1745713978675,1.7212,1842.2,1842.0,2.93881]
[1745713978875,1.7212,1842.2,1842.0,1.8534]
[1745713979072,2.80651,1842.2,1842.0,1.8534]
[1745713979277,1.7212,1842.2,1842.0,2.93881]
[1745713979775,4.29302,1842.4,1842.1,1.08534]
[1745713979976,2.80637,1842.5,1842.2,1.08529]
[1745713980175,1.08519,1842.4,1842.2,1.08529]
[1745713980576,5.4281,1842.6,1842.3,1.8157]
[1745713980877,4.343,1842.6,1842.5,1.08513]
[1745713981081,3.7288,1843.0,1842.3,1.8157]
[1745713981082,8.0728,1843.0,1842.3,5.0235]
[1745713981273,5.42886,1843.0,1842.3,7.73655]
[1745713981479,4.344,1843.0,1842.8,1.08493]
[1745713981780,4.344,1843.0,1842.9,2.81419]
[1745713981970,4.344,1843.0,1842.9,1.7293]
[1745713982370,4.344,1843.0,1842.9,2.81419]
[1745713982778,4.344,1843.0,1842.9,1.7293]
[1745713983477,4.344,1843.0,1842.9,2.81419]
[1745713984281,8.63655,1843.2,1843.0,1.08483]
[1745713984473,8.63655,1843.2,1843.1,1.8661]
[1745713984672,1.08487,1843.0,1842.7,4.29278]
[1745713984878,1.08487,1843.0,1842.8,2.95105]
[1745713985080,1.08487,1843.0,1842.9,1.8661]
[1745713985283,2.95852,1843.1,1842.9,1.8661]
[1745713985484,1.8737,1843.1,1842.9,2.95099]
[1745713985774,2.95848,1843.1,1842.9,2.95099]
[1745713985980,2.95848,1843.1,1842.9,1.8661]
[1745713986580,1.8737,1843.1,1843.0,1.08483]
[1745713986972,2.95852,1843.1,1842.9,2.95098]
[1745713987671,1.8737,1843.1,1843.0,1.08483]
[1745713987870,1.8737,1843.1,1843.0,1.7981]
[1745713988075,1.7156,1843.5,1843.0,1.7981]
[1745713988277,1.08462,1843.4,1843.2,1.0847]
[1745713988487,1.08462,1843.4,1843.3,1.7981]
[1745713988779,1.08458,1843.5,1843.3,2.88275]
[1745713988975,1.764,1843.5,1843.4,1.7981]
[1745713989284,3.722,1843.5,1843.4,2.8827]
[1745713989473,3.722,1843.5,1843.4,1.7981]
[1745713989674,3.722,1843.5,1843.4,2.8827]
[1745713990168,9.3158,1843.8,1843.4,2.8827]
[1745713990169,1.08444,1843.7,1843.5,1.08454]
[1745713990373,2.84844,1843.7,1843.5,1.08454]
[1745713990573,1.0845,1843.6,1843.4,2.88269]
[1745713990774,2.84844,1843.7,1843.4,2.88266]
[1745713991182,2.84844,1843.7,1843.5,1.08453]
[1745713991382,2.84844,1843.7,1843.5,2.83873]
[1745713991885,1.08466,1843.3,1843.2,3.2078]
[1745713992179,2.71165,1843.3,1842.7,4.29277]
[1745713992387,1.08478,1843.1,1843.0,0.0162925]
[1745713992884,2.84958,1843.1,1843.0,0.032585]
[1745713993076,6.57158,1843.1,1843.0,0.032585]
[1745713993277,5.4868,1843.1,1843.0,1.08483]
[1745713993583,3.722,1843.1,1843.0,1.1337075]
[1745713993983,3.722,1843.1,1843.0,1.15]
[1745713994287,1.08466,1843.3,1843.1,1.08474]
[1745713994480,2.85336,1843.3,1843.2,1.86533054]
[1745713995480,1.7687,1843.3,1843.2,1.86533054]
[1745713995680,2.85336,1843.3,1843.2,0.07423054]
[1745713995884,11.06116,1843.3,1843.2,0.07423054]
[1745713996087,14.78316,1843.3,1843.2,0.07423054]
[1745713998477,2.7118,1843.2,1842.2,3.2078]
[1745713998683,1.08525,1842.3,1842.2,1.8856]
[1745713999086,3.722,1842.3,1841.8,4.29332]
[1745713999390,6.0094,1842.2,1841.9,1.8856]
[1745713999588,7.09472,1842.2,1841.9,1.8856]
[1745713999785,7.09473,1842.2,1842.0,1.08541]
[1745713999977,6.0094,1842.2,1842.1,1.7339]
[1745714000378,4.29299,1842.4,1842.1,1.7339]
[1745714000685,3.2078,1842.4,1842.1,1.7339]
[1745714000892,5.33093,1842.9,1842.3,3.2078]
[1745714001091,4.246,1842.9,1842.7,1.08498]
[1745714001391,4.246,1842.9,1842.8,2.81885]
[1745714001587,1.08479,1843.1,1842.9,1.08488]
[1745714001788,8.92607,1843.2,1843.0,2.8187]
[1745714001993,8.92607,1843.2,1843.1,0.03279772]
[1745714002288,68.3448,1843.3,1843.1,0.03279772]
[1745714002485,68.3448,1843.3,1843.2,0.04920929]
[1745714002792,8.53846,1843.3,1843.2,0.04920929]
[1745714003288,2.71192,1843.2,1842.5,9.1658]
[1745714003595,1.08501,1842.7,1842.6,1.8006]
[1745714003792,1.08492,1842.9,1842.7,1.08501]
[1745714003986,1.08497,1842.8,1842.6,1.8006]
[1745714004192,4.80689,1842.9,1842.8,0.01641157]
[1745714004684,4.80689,1842.9,1842.8,0.02502125]
[1745714004890,3.722,1842.9,1842.8,0.02502125]
[1745714005085,2.96528,1843.0,1842.8,2.91057125]
[1745714005286,7.4538,1843.3,1842.9,2.88549]
[1745714005488,2.96516,1843.2,1842.9,2.88549]
[1745714005693,2.96516,1843.2,1843.0,0.02502125]
[1745714006188,6.68716,1843.2,1843.0,1.85752125]
[1745714006392,6.68712,1843.2,1843.0,2.94232125]
[1745714006791,6.68712,1843.2,1843.1,0.02502125]
[1745714006999,3.722,1843.2,1843.1,1.10980125]
[1745714007297,1.08468,1843.3,1843.1,0.02502125]
[1745714007489,1.08468,1843.3,1843.2,1.8325]
[1745714007688,2.92988,1843.3,1843.2,1.8325]
[1745714007996,2.92988,1843.3,1843.2,1.85752125]
[1745714008190,6.65188,1843.3,1843.2,1.85752125]
[1745714008499,3.722,1843.3,1843.2,11.15004125]
[1745714008688,0.8401,1843.3,1843.2,11.53827376]
[1745714009189,1.08441,1843.8,1843.5,1.08451]
[1745714009393,1.0844,1843.8,1843.6,1.8258]
[1745714009591,1.0844,1843.8,1843.6,2.91028]
[1745714009791,1.08435,1843.9,1843.6,2.91028]
[1745714009997,1.08435,1843.9,1843.7,1.85082125]
[1745714009998,1.8237,1843.8,1843.7,1.85082125]
[1745714010198,18.52645857,1844.0,1843.8,1.08433]
[1745714010391,18.52645857,1844.0,1843.9,1.8258]
[1745714010587,19.61070857,1844.0,1843.9,1.8258]
[1745714010792,19.61070857,1844.0,1843.9,1.88355814]
[1745714011190,19.61070857,1844.0,1843.9,1.8258]
[1745714011398,19.61070857,1844.0,1843.9,1.89993532]
[1745714011896,18.52645857,1844.0,1843.9,1.89993532]
[1745714012084,19.61070857,1844.0,1843.9,1.89993532]
[1745714012292,21.43330857,1844.0,1843.9,1.89993532]
[1745714012599,21.43330857,1844.0,1843.9,0.07413532]
[1745714012795,29.64110857,1844.0,1843.9,0.07413532]
[1745714012998,7.15285,1844.0,1843.9,0.07413532]
[1745714013191,10.87485,1844.0,1843.9,0.07413532]
[1745714014096,5.32923,1844.1,1843.9,0.09049505]
[1745714014297,5.32923,1844.1,1844.0,1.8623]
[1745714014494,5.32923,1844.1,1844.0,1.96155179]
[1745714015097,10.79263,1844.1,1844.0,1.96155179]
[1745714017503,3.722,1844.1,1844.0,8.04580179]
[1745714017999,3.722,1844.1,1844.0,9.91510179]
[1745714018301,1.08399,1844.5,1844.2,1.08408]
[1745714018608,1.08399,1844.5,1844.3,1.89735179]
[1745714019295,1.08399,1844.5,1844.3,2.98140179]
[1745714019492,1.08401,1844.4,1844.3,1.7981]
[1745714019697,1.752,1844.6,1844.1,3.2078]
[1745714019903,1.08413,1844.2,1844.1,3.2078]
[1745714020097,1.08413,1844.2,1844.1,3.22413681]
[1745714020897,2.83611,1844.3,1844.1,3.24049106]
[1745714021301,1.08413,1844.2,1844.1,3.24049106]
[1745714021502,1.752,1844.3,1844.1,3.25684531]
[1745714021704,1.08404,1844.4,1844.2,1.08411]
[1745714021905,5.32798,1844.5,1844.3,1.08407]
[1745714022105,1.01862044,1844.4,1844.2,1.08409]
[1745714022307,1.08413,1844.2,1844.1,3.2078]
[1745714022707,1.08433,1843.9,1843.7,2.90669]
[1745714023406,1.08428,1844.0,1843.8,1.08436]
[1745714025500,1.08442,1843.7,1843.6,3.2078]
[1745714025705,1.08472,1843.2,1843.1,3.2078]
[1745714025905,1.08482,1843.1,1842.9,1.85]
[1745714026115,2.87202,1843.1,1842.9,1.85]
[1745714026310,2.87202,1843.1,1842.8,4.29271]
[1745714026616,1.7872,1843.1,1842.9,1.08487]
[1745714027112,4.157,1843.3,1843.0,3.2078]
[1745714027610,4.157,1843.3,1843.1,1.08475]
[1745714028015,4.157,1843.3,1843.2,1.08472]
[1745714028212,2.91447,1843.5,1843.2,1.08472]
[1745714029111,1.8299,1843.5,1843.0,3.2078]
[1745714029309,1.08473,1843.2,1843.0,3.2078]
[1745714029612,2.91468,1843.1,1843.0,3.2078]
[1745714030517,4.8066,1843.4,1843.2,1.08471]
[1745714030719,3.722,1843.4,1843.2,1.08471]
[1745714031215,2.8819,1843.4,1843.0,3.2078]
[1745714031514,2.8819,1843.4,1842.7,1.8241]
[1745714031515,2.7118,1843.2,1842.7,1.8241]
[1745714031715,5.9553,1843.1,1842.7,2.96808]
[1745714031915,1.08491,1842.9,1842.7,1.8831]
[1745714032217,1.08491,1842.9,1842.7,2.96811]
[1745714032518,1.7973,1842.8,1842.7,2.96811]
[1745714033016,1.7973,1842.8,1842.7,1.8831]
[1745714033214,10.0051,1842.8,1842.3,3.2078]
[1745714033411,6.0116,1842.7,1842.2,3.2078]
[1745714033617,1.08515,1842.5,1842.3,1.801]
[1745714033916,1.7532,1842.6,1842.3,1.801]
[1745714034109,2.83832,1842.6,1842.4,3.2078]
[1745714034316,1.7532,1842.6,1842.4,4.29298]
[1745714034615,1.7532,1842.6,1842.5,1.08513]
[1745714034817,4.158,1842.7,1842.5,2.88613]
[1745714035117,4.158,1842.7,1842.4,3.2078]
[1745714035416,1.08525,1842.3,1842.0,3.2078]
[1745714035620,1.7532,1842.2,1842.0,5.0088]
[1745714035921,2.83851,1842.2,1842.0,5.0088]
[1745714036219,1.08544,1842.0,1841.8,1.7923]
[1745714036517,1.08546,1842.0,1841.7,5.0761]
[1745714036919,1.8776,1841.9,1841.7,6.1617]
[1745714037121,2.9631,1841.9,1841.7,5.0761]
[1745714037425,1.8776,1841.9,1841.7,5.0761]
[1745714037621,2.9631,1841.9,1841.7,5.0761]
[1745714038511,1.8776,1841.9,1841.7,6.16167]
[1745714039021,2.96308,1841.9,1841.7,5.0761]
[1745714039227,1.8776,1841.9,1841.7,5.0761]
[1745714039413,2.96309,1841.9,1841.7,5.0761]
[1745714039717,3.2078,1842.2,1841.7,5.0761]
[1745714039919,1.08542,1842.0,1841.7,6.16166]
[1745714040221,6.19783,1842.2,1841.9,1.08545]
[1745714040419,2.99003,1842.2,1842.0,1.7525]
[1745714040729,4.159,1842.3,1842.1,1.08534]
[1745714041021,1.08525,1842.3,1842.2,1.7525]
[1745714042022,3.2078,1842.4,1841.9,3.2078]
[1745714042324,1.9047,1842.2,1841.8,1.7525]
[1745714042518,1.9047,1842.2,1841.8,2.83804]
[1745714042718,1.08536,1842.1,1841.8,2.83804]
[1745714042925,1.08526,1842.3,1842.1,1.08536]
[1745714043126,1.08526,1842.3,1842.2,1.775]
[1745714043922,1.08525,1842.3,1842.2,1.775]
[1745714044320,1.08542,1842.0,1841.6,1.9237]
[1745714044520,1.9241,1842.3,1841.9,3.2078]
[1745714044726,1.9241,1842.3,1842.1,4.29313]
[1745714044925,1.9241,1842.3,1842.2,1.775]
[1745714045125,1.08517,1842.5,1842.2,2.8603]
[1745714045323,1.8548,1842.5,1842.2,1.775]
[1745714045520,1.08515,1842.5,1842.3,1.08523]
[1745714045720,8.84331,1842.6,1842.4,1.9198]
[1745714045928,1.08513,1842.5,1842.4,1.9198]
[1745714046418,4.16,1842.6,1842.4,1.9198]
[1745714046724,5.2451,1842.6,1842.4,3.00498]
[1745714046918,1.08513,1842.5,1842.4,1.9198]
[1745714047526,2.93993,1842.5,1842.4,1.9198]
[1745714047819,1.08524,1842.4,1842.2,3.7562]
[1745714048023,2.94004,1842.4,1842.2,3.7562]
[1745714048225,2.94004,1842.4,1842.2,4.8415]
[1745714049121,1.08525,1842.3,1842.2,5.1276]
[1745714049327,1.08536,1842.1,1842.0,3.2078]
[1745714050023,2.88126,1842.1,1842.0,3.2078]
[1745714050227,6.60326,1842.1,1842.0,3.2078]
[1745714050820,5.5179,1842.1,1842.0,3.2078]
[1745714051120,5.24531,1842.2,1842.0,4.29322]
[1745714051326,5.24531,1842.2,1842.1,1.877]
[1745714052118,1.08536,1842.1,1842.0,3.2078]
[1745714052720,5.24531,1842.2,1842.0,4.29322]
[1745714052921,5.24531,1842.2,1842.1,1.8254]
[1745714053423,4.16,1842.2,1841.8,3.2078]
[1745714053723,1.8793,1842.1,1841.8,5.0332]
[1745714053917,1.08542,1842.0,1841.9,1.8254]
[1745714054525,1.08548,1841.9,1841.8,3.2078]
[1745714054726,3.00888,1841.9,1841.8,5.0438]
[1745714055130,1.0856,1841.7,1841.6,5.0438]
[1745714055319,1.0857,1841.6,1841.4,9.1658]
[1745714055519,1.08572,1841.5,1841.4,3.2078]
[1745714055728,3.0091,1841.6,1841.4,6.12957]
[1745714055931,1.9234,1841.6,1841.4,5.0438]
[1745714056231,1.08572,1841.5,1841.4,5.0438]
[1745714056630,1.08572,1841.5,1841.4,3.2078]
[1745714057731,6.0752,1841.8,1841.6,1.08565]
[1745714057917,5.24555,1841.8,1841.6,1.08565]
[1745714058125,4.16,1841.8,1841.7,2.9329]
[1745714058326,4.16,1841.8,1841.7,1.8473]
[1745714058727,4.16,1841.8,1841.7,2.9329]
[1745714059323,4.161,1842.2,1841.7,9.95038183]
[1745714059526,4.161,1842.2,1841.9,3.2078]
[1745714059735,4.161,1842.2,1842.0,1.8473]
[1745714059931,1.08536,1842.1,1842.0,1.8473]
[1745714060129,1.08541,1842.1,1841.8,1.9309]
[1745714060428,1.8699,1842.0,1841.9,3.32200199]
[1745714060638,4.161,1842.2,1842.0,1.08542]
[1745714060832,4.161,1842.2,1842.1,2.87786]
[1745714061039,5.24631,1842.2,1842.1,5.0003]
[1745714061430,1.08542,1842.0,1841.8,3.2078]
[1745714061630,1.08542,1842.0,1841.9,0.3896877]
[1745714061830,2.93498,1841.9,1841.8,1.7925]
[1745714062033,2.93498,1841.9,1841.8,2.18225813]
[1745714062535,1.8495,1841.9,1841.8,2.18225813]
[1745714063438,1.8495,1841.9,1841.8,2.18265198]
[1745714063747,2.93498,1841.9,1841.8,2.18265198]
[1745714064346,2.93498,1841.9,1841.6,3.2078]
[1745714064347,1.0856,1841.7,1841.6,3.2078]
[1745714064739,1.0856,1841.7,1841.4,3.2078]
[1745714064740,1.08572,1841.5,1841.4,3.2078]
[1745714065240,1.08582,1841.4,1841.1,3.2078]
[1745714065441,3.01262,1841.4,1841.2,0.39057012]
[1745714065642,3.01262,1841.4,1841.2,1.8993]
[1745714065643,1.08584,1841.3,1841.2,1.8993]
[1745714065842,3.01264,1841.3,1841.2,2.28970397]
[1745714066039,1.9268,1841.3,1841.1,3.2078]
[1745714066243,1.0859,1841.2,1841.1,3.2078]
[1745714067150,4.8079,1841.2,1841.1,3.2078]
[1745714067652,3.722,1841.2,1841.1,4.29375]
[1745714068244,4.161,1841.4,1841.1,3.2078]
[1745714068445,1.8608,1841.3,1841.1,4.29372]
[1745714068645,4.161,1841.4,1841.2,1.776]
[1745714068854,7.1076,1841.4,1841.2,1.776]
[1745714069148,6.0218,1841.4,1841.2,1.776]
[1745714069356,7.10762,1841.4,1841.2,1.776]
[1745714069550,1.08584,1841.3,1841.1,3.2078]
[1745714069750,2.866,1841.2,1841.1,3.2078]
[1745714070056,2.866,1841.2,1840.9,1.8311]
[1745714070057,1.08601,1841.0,1840.9,1.8311]
[1745714070858,6.58802,1841.2,1841.0,1.086]
[1745714071051,2.86602,1841.2,1841.0,1.086]
[1745714071259,2.86602,1841.2,1841.1,1.8311]
[1745714071654,4.29367,1841.3,1841.1,2.91705]
[1745714071958,3.2078,1841.3,1841.1,2.91705]
[1745714072149,3.2078,1841.3,1841.2,1.8311]
[1745714072657,3.2078,1841.3,1841.2,2.917]
[1745714073056,3.2078,1841.3,1841.2,1.8311]
[1745714073661,4.29364,1841.3,1841.2,1.8311]
[1745714073959,6.13494,1841.3,1841.2,1.8311]
[1745714074259,6.64914,1841.3,1841.2,1.8311]
[1745714075159,6.24911,1841.6,1841.3,1.08582]
[1745714075160,1.08573,1841.5,1841.3,1.08582]
[1745714075360,1.08573,1841.5,1841.4,1.7947]
[1745714076160,1.8413,1841.6,1841.4,1.7947]
[1745714076365,7.884,1841.7,1841.4,1.7947]
[1745714076659,10.72452,1841.7,1841.5,1.08569]
[1745714076961,10.72452,1841.7,1841.6,1.8146]
[1745714077262,7.00252,1841.7,1841.6,1.8146]
[1745714077662,7.0025,1841.7,1841.6,1.8146]
[1745714077863,12.02796,1842.0,1841.6,5.0224]
[1745714078160,7.06113,1842.0,1841.7,1.08556]
[1745714078359,7.06113,1842.0,1841.7,1.8146]
[1745714078662,2.89913,1842.0,1841.8,1.08552]
[1745714078859,2.89913,1842.0,1841.9,1.7712]
[1745714079061,1.08554,1841.8,1841.7,1.8598]
[1745714079261,1.08554,1841.8,1841.7,3.631]
[1745714080159,4.162,1841.8,1841.2,13.3278]
[1745714080360,1.08577,1841.5,1841.3,1.7712]
[1745714080562,1.08578,1841.4,1841.3,1.7712]
[1745714080861,1.7633,1841.7,1841.3,1.7712]
[1745714081061,1.08574,1841.5,1841.3,1.7712]
[1745714081455,1.08578,1841.4,1841.3,1.7712]
[1745714082359,4.80778,1841.4,1841.3,1.7712]
[1745714082763,3.722,1841.4,1841.3,1.7712]
[1745714083257,1.08574,1841.5,1841.3,1.7712]
[1745714083563,1.08578,1841.4,1841.3,1.7712]
[1745714084065,5.9253,1841.7,1841.3,1.7712]
[1745714084260,1.08571,1841.6,1841.3,1.7712]
[1745714084462,4.162,1841.7,1841.3,1.7712]
[1745714084767,1.08578,1841.4,1841.3,1.7712]
[1745714085964,1.08584,1841.3,1841.2,3.2078]
[1745714086161,1.0859,1841.2,1841.1,5.958]
[1745714086369,1.0859,1841.2,1840.9,5.0252]
[1745714086370,2.71475,1841.2,1840.9,5.0252]
[1745714086563,1.08601,1841.0,1840.9,5.0252]
[1745714086757,4.59014,1841.1,1840.6,1.8788]
[1745714087067,1.08613,1840.8,1840.7,1.8174]
[1745714088562,1.08611,1840.9,1840.7,10.0252]
[1745714088771,5.9217,1841.3,1840.7,10.0252]
[1745714089067,1.08612,1840.9,1840.7,5.0252]
[1745714089465,4.161,1841.3,1840.8,1.08611]
[1745714089664,1.08598,1841.1,1841.0,3.2078]
[1745714089869,1.08598,1841.1,1841.0,5.1359]
[1745714090267,1.08598,1841.1,1841.0,7.0094]
[1745714090569,1.08607,1840.9,1840.8,3.2078]
[1745714090766,1.08607,1840.9,1840.8,1.8735]
[1745714092061,1.08607,1840.9,1840.8,5.0813]
[1745714092765,1.08598,1841.1,1840.8,10.0813]
[1745714093071,2.71409,1841.7,1841.0,3.2078]
[1745714093262,2.71416,1841.6,1841.3,3.2078]
[1745714093461,1.08572,1841.5,1841.4,1.8173]
[1745714094169,1.0859,1841.2,1841.1,0.0066687]
[1745714094875,2.923,1841.2,1841.1,0.0066687]
[1745714095066,6.645,1841.2,1841.1,0.0066687]
[1745714099467,6.645,1841.2,1840.6,1.9107]
[1745714099468,1.08619,1840.7,1840.6,1.9107]
[1745714100670,1.08619,1840.7,1840.3,1.9134]
[1745714100671,5.92329,1840.7,1840.3,1.9134]
[1745714100869,1.748,1840.6,1840.4,1.8995]
[1745714101070,1.08631,1840.5,1840.4,1.8995]
[1745714101666,1.08627,1840.6,1840.4,11.19362]
[1745714101970,1.08628,1840.6,1840.4,6.19364]
[1745714102163,3.2078,1840.9,1840.4,10.1073]
[1745714102363,1.08627,1840.6,1840.4,6.19365]
[1745714102763,3.2078,1840.9,1840.4,6.19366]
[1745714102963,1.08629,1840.6,1840.4,6.19366]
[1745714103470,1.08621,1840.7,1840.4,5.1073]
[1745714103674,3.2078,1840.9,1840.5,1.08629]
[1745714103872,1.08621,1840.7,1840.6,1.7759]
[1745714105577,1.08611,1840.9,1840.7,1.08616]
[1745714105784,1.08598,1841.1,1840.9,1.08605]
[1745714105975,1.08593,1841.2,1841.0,1.9074]
[1745714106172,1.08593,1841.2,1841.0,3.6833]
[1745714106873,4.162,1841.4,1841.0,3.6833]
[1745714107078,1.08594,1841.2,1841.0,3.6833]
[1745714107274,1.08595,1841.1,1841.0,3.6833]
[1745714107882,1.08594,1841.2,1841.0,3.6833]
[1745714108177,2.71504,1841.0,1840.5,5.958]
[1745714108376,1.08625,1840.6,1840.5,5.958]
[1745714109372,1.749,1840.8,1840.5,7.8863]
[1745714109679,1.08625,1840.6,1840.5,7.8863]
[1745714110274,4.162,1841.0,1840.5,8.97259]
[1745714110582,1.08617,1840.8,1840.5,8.97259]
[1745714110781,1.08617,1840.8,1840.6,1.08625]
[1745714110978,3.2078,1841.1,1840.7,3.7634]
[1745714111182,1.08594,1841.2,1840.9,1.08603]
[1745714111477,1.749,1841.3,1841.0,1.9283]
[1745714111678,7.3698,1841.4,1841.0,1.9283]
[1745714111887,7.3698,1841.4,1841.0,3.01427]
[1745714111888,1.08588,1841.3,1841.0,3.01427]
[1745714112682,3.6306,1841.6,1841.0,5.1361]
[1745714112683,6.8384,1841.6,1841.0,5.1361]
[1745714112877,1.08574,1841.5,1841.3,1.08583]
[1745714113084,1.08558,1841.8,1841.5,1.08571]
[1745714113284,1.0856,1841.7,1841.6,1.9141]
[1745714114377,1.08578,1841.4,1841.3,3.5386]
[1745714114576,1.08578,1841.4,1841.3,3.6963]
[1745714114773,1.08578,1841.4,1841.0,4.29379]
[1745714114774,7.71455,1841.4,1840.7,5.958]
[1745714114978,1.08613,1840.9,1840.8,3.2078]
[1745714115179,1.08613,1840.8,1840.7,9.6543]
[1745714115989,1.08612,1840.9,1840.7,9.6543]
[1745714116486,1.08613,1840.8,1840.7,9.6543]
[1745714116688,1.08611,1840.9,1840.7,9.6543]
[1745714117287,1.08613,1840.8,1840.7,9.6543]
[1745714117488,1.08611,1840.9,1840.7,9.6543]
[1745714118281,1.08613,1840.8,1840.7,9.6543]
[1745714118792,1.08607,1840.9,1840.7,9.6543]
[1745714119286,1.08609,1840.9,1840.7,9.6543]
[1745714119590,1.08613,1840.8,1840.7,7.8721]
[1745714119786,1.08631,1840.5,1840.4,3.2078]
[1745714119986,1.08637,1840.4,1840.3,5.6807]
[1745714120192,1.08637,1840.4,1840.3,3.7585]
[1745714120984,3.722,1840.8,1840.3,11.9663]
[1745714121185,1.08619,1840.8,1840.4,1.08633]
[1745714121490,1.08619,1840.8,1840.3,12.9243]
[1745714121883,1.08611,1840.9,1840.6,1.08623]
[1745714122089,4.29386,1841.0,1840.7,1.08616]
[1745714122389,3.2078,1841.0,1840.8,1.08609]
[1745714122690,1.08594,1841.2,1840.9,1.08607]
[1745714122886,3.7237,1841.5,1841.0,1.086]
[1745714123084,2.90868,1841.3,1841.0,1.086]
[1745714123291,1.8228,1841.3,1841.0,1.086]
[1745714123492,2.90866,1841.3,1841.0,1.086]
[1745714123789,1.0859,1841.2,1841.0,1.086]
[1745714124090,4.82977,1841.3,1841.0,1.086]
[1745714124294,1.0859,1841.2,1841.0,1.086]
[1745714124594,4.82978,1841.3,1841.0,1.086]
[1745714124790,1.08597,1841.1,1840.8,2.86778]
[1745714124995,1.08593,1841.2,1840.9,1.08605]
[1745714125294,2.97353,1841.2,1840.9,1.08605]
[1745714125987,1.8876,1841.2,1841.0,1.08598]
[1745714126293,3.2078,1841.3,1841.1,1.08595]
[1745714126686,3.2078,1841.3,1840.8,1.7817]
[1745714126687,4.29364,1841.3,1841.0,1.08598]
[1745714126886,3.2078,1841.3,1841.1,1.08594]
[1745714127081,4.29364,1841.3,1841.1,1.08594]
[1745714127290,4.29365,1841.3,1841.0,1.08597]
[1745714127492,1.08593,1841.2,1840.8,1.7817]
[1745714127688,1.08606,1841.0,1840.8,1.7817]
[1745714127997,2.91314,1841.2,1840.9,1.08606]
[1745714129395,1.08596,1841.1,1840.9,1.08606]
[1745714129591,1.08602,1841.0,1840.8,2.86781]
[1745714129788,4.8106,1841.1,1840.8,2.86781]
[1745714130092,3.7246,1841.1,1840.8,1.7817]
[1745714130296,3.7246,1841.1,1841.0,1.08601]
[1745714130597,4.29368,1841.3,1841.1,1.08593]
[1745714130794,4.29368,1841.3,1840.8,1.7817]
[1745714131094,4.29368,1841.3,1841.1,1.08595]
[1745714131888,4.29368,1841.3,1840.8,1.7817]
[1745714131889,3.2078,1841.3,1841.2,2.8423]
[1745714132084,1.8974,1841.5,1841.4,1.08578]
[1745714132296,1.08567,1841.6,1841.4,1.08575]
[1745714132596,1.8687,1841.5,1841.3,1.08579]
[1745714132784,2.95442,1841.5,1841.4,1.7564]
[1745714132987,1.8687,1841.5,1841.4,1.7564]
[1745714133188,1.08578,1841.4,1841.1,2.84981]
[1745714133387,1.8328,1841.4,1841.1,3.5203]
[1745714133589,3.2078,1841.5,1841.4,1.08578]
[1745714134689,5.0542,1841.5,1841.4,1.08578]
[1745714134905,3.2078,1841.5,1841.4,1.08578]
[1745714136301,5.0542,1841.7,1841.3,1.08582]
[1745714136597,5.0542,1841.7,1841.2,7.7144]
[1745714136800,5.0542,1841.7,1841.5,1.08567]
[1745714137001,5.0542,1841.7,1841.6,2.97876]
[1745714137199,6.1398,1841.7,1841.6,1.8931]
[1745714137598,1.7802,1841.8,1841.7,1.0856]
[1745714137898,8.06259,1842.3,1841.7,2.71401]
[1745714138098,8.06259,1842.3,1842.1,1.08536]
[1745714138099,9.81019,1842.3,1842.1,1.08536]
[1745714138596,8.7249,1842.3,1842.2,1.08531]
[1745714138801,4.16,1842.5,1842.4,1.08519]
[1745714138802,3.2078,1842.5,1842.4,1.08519]
[1745714139492,14.44502744,1842.7,1842.6,1.08507]
[1745714140297,14.44502744,1842.7,1842.6,2.87117]
[1745714141001,4.70114,1843.0,1842.7,1.08499]
[1745714141196,3.2078,1842.8,1842.4,3.2078]
[1745714141396,6.8241,1843.0,1842.5,1.8033]
[1745714141599,3.6163,1843.0,1842.8,1.08492]
[1745714141805,3.6163,1843.0,1842.9,2.88819]
[1745714141996,8.45154,1843.2,1842.9,2.88819]
[1745714142197,1.8483,1843.1,1842.9,1.8033]
[1745714142406,2.93308,1843.1,1842.9,1.8033]
[1745714143499,1.8483,1843.1,1842.9,2.88818]
[1745714144100,3.2078,1843.4,1842.9,1.8033]
[1745714144300,4.9856,1843.4,1843.3,1.08466]
[1745714144506,3.2078,1843.7,1843.5,1.0845]
[1745714144700,1.7778,1843.7,1843.6,1.08448]
[1745714144891,3.2078,1843.7,1843.2,7.8839]
[1745714145092,1.7778,1843.6,1843.2,7.8839]
[1745714145297,3.2078,1843.7,1843.2,7.8839]
[1745714145599,3.2078,1843.7,1843.6,1.08448]
[1745714145902,1.806,1843.8,1843.7,1.08442]
[1745714146299,15.96129563,1843.9,1843.8,1.08436]
[1745714146997,5.1193,1844.1,1843.9,1.08425]
[1745714147399,6.20353,1844.1,1843.8,1.08433]
[1745714147804,1.08445,1843.7,1843.4,4.29238]
[1745714148107,1.9115,1843.6,1843.5,1.08454]
[1745714148307,4.29214,1843.9,1843.6,1.08447]
[1745714148507,3.2078,1843.9,1843.7,2.98802]
[1745714149003,5.1367,1843.9,1843.7,2.98802]
[1745714149600,5.1367,1843.9,1843.7,1.9036]
[1745714149798,5.1367,1843.9,1843.7,2.98798]
[1745714150003,5.1367,1843.9,1843.7,2.988]
[1745714150204,3.2078,1843.9,1843.7,1.9036]
[1745714150408,3.2078,1843.9,1843.8,1.08436]